fUST/lending_fUST_20260426
["ID","MTS","AMOUNT","RATE_DAILY","PERIOD"]
[421175648,1777208801661,-303.73438588,0.00025291,120]
[421175649,1777208801692,-153.6808759,0.00025291,120]
[421175650,1777208801727,-180.11945925,0.00025291,120]
[421175651,1777208801758,-180.11945925,0.00025291,120]
[421175652,1777208801788,-180.11945925,0.00025291,120]
[421175653,1777208801818,-162.82690955,0.00025291,120]
[421175654,1777208801848,-173.93976314,0.00025291,120]
[421175655,1777208801879,-204.41011923,0.00025291,120]
[421175656,1777208801910,-174.73746481,0.00025291,120]
[421175657,1777208801943,-204.41011923,0.00025291,120]
[421175658,1777208801974,-204.41011923,0.00025291,120]
[421175659,1777208802005,-174.73746481,0.00025291,120]
[421175660,1777208802038,-204.41011923,0.00025291,120]
[421175661,1777208802069,-204.41011923,0.00025291,120]
[421175662,1777208802101,-204.41011923,0.00025291,120]
[421175663,1777208802133,-204.41011923,0.00025291,120]
[421175664,1777208802165,-204.41011923,0.00025291,120]
[421175665,1777208802197,-204.41011923,0.00025291,120]
[421175666,1777208802228,-204.41011923,0.00025291,120]
[421175667,1777208802259,-204.41011923,0.00025291,120]
[421175668,1777208802291,-204.41011923,0.00025291,120]
[421175669,1777208802322,-204.41011923,0.00025291,120]
[421175670,1777208802354,-204.41011923,0.00025291,120]
[421175671,1777208802385,-204.41011916,0.00025291,120]
[421175672,1777208802416,-499.18655813,0.00025291,120]
[421175673,1777208802448,-176.15139523,0.00025291,120]
[421175674,1777208802479,-210.12376313,0.00025291,120]
[421175675,1777208802509,-176.15139523,0.00025291,120]
[421175676,1777208802540,-499.18655813,0.00025291,120]
[421175677,1777208802571,-1114.37140109,0.00025291,120]
[421175678,1777208802601,-176.15139523,0.00025291,120]
[421175679,1777208802631,-499.18655813,0.00025291,120]
[421175680,1777208802661,-1114.37140109,0.00025291,120]
[421175681,1777208802692,-176.15139523,0.00025291,120]
[421175682,1777208802725,-1114.37140109,0.00025291,120]
[421175683,1777208802756,-499.18655813,0.00025291,120]
[421175684,1777208802787,-176.15139523,0.00025291,120]
[421175685,1777208802818,-499.18655813,0.00025291,120]
[421175686,1777208802850,-1114.37140109,0.00025291,120]
[421175687,1777208802882,-176.15139523,0.00025291,120]
[421175688,1777208802915,-499.18655813,0.00025291,120]
[421175689,1777208802946,-1114.37140109,0.00025291,120]
[421175690,1777208802977,-176.15139523,0.00025291,120]
[421175691,1777208803010,-1114.37140109,0.00025291,120]
[421175692,1777208803042,-499.18655813,0.00025291,120]
[421175693,1777208803072,-176.15139523,0.00025291,120]
[421175694,1777208803105,-1114.37140109,0.00025291,120]
[421175695,1777208803137,-499.18655813,0.00025291,120]
[421175696,1777208803171,-1114.37140109,0.00025291,120]
[421175697,1777208803203,-499.18655813,0.00025291,120]
[421175698,1777208803235,-499.18655813,0.00025291,120]
[421175699,1777208803267,-1114.37140109,0.00025291,120]
[421175700,1777208803299,-499.18655813,0.00025291,120]
[421175701,1777208803331,-1114.37140109,0.00025291,120]
[421175702,1777208803362,-499.18655813,0.00025291,120]
[421175703,1777208803394,-1114.37140109,0.00025291,120]
[421175704,1777208803425,-499.18655813,0.00025291,120]
[421175705,1777208803457,-1114.37140109,0.00025291,120]
[421175706,1777208803488,-499.18655813,0.00025291,120]
[421175707,1777208803520,-1114.37140109,0.00025291,120]
[421175708,1777208803551,-499.18655813,0.00025291,120]
[421175709,1777208803583,-1114.37140109,0.00025291,120]
[421175710,1777208803616,-1114.37140109,0.00025291,120]
[421175711,1777208803647,-1114.37140109,0.00025291,120]
[421175712,1777208803679,-1114.37140109,0.00025291,120]
[421175713,1777208803709,-1114.37140109,0.00025291,120]
[421175714,1777208803741,-1114.37140109,0.00025291,120]
[421175715,1777208803772,-1114.37140109,0.00025291,120]
[421175716,1777208803804,-1114.37140109,0.00025291,120]
[421175717,1777208803977,-1114.37140109,0.00025291,120]
[421175718,1777208804010,-1114.37140109,0.00025291,120]
[421175719,1777208804042,-1114.37140109,0.00025291,120]
[421175720,1777208804075,-1114.37140109,0.00025291,120]
[421175721,1777208804106,-1114.37140109,0.00025291,120]
[421175722,1777208804138,-1114.37140109,0.00025291,120]
[421175723,1777208804170,-1114.37140109,0.00025291,120]
[421175724,1777208804201,-1114.37140109,0.00025291,120]
[421175726,1777208804233,-1114.37140109,0.00025291,120]
[421175728,1777208804267,-179.26822367,0.00025291,120]
[421175729,1777208804297,-210.12376314,0.00025291,120]
[421175730,1777208804328,-179.26822367,0.00025291,120]
[421175731,1777208804360,-179.26822367,0.00025291,120]
[421175732,1777208804390,-284.425759,0.00025291,120]
[421175734,1777208811531,742.91426739,0.00025291,120]
[421175735,1777208811831,742.91426739,0.00025291,120]
[421175738,1777208812170,742.91426739,0.00025291,120]
[421175739,1777208812769,742.91426739,0.00025291,120]
[421175740,1777208813076,742.91426739,0.00025291,120]
[421175741,1777208813372,742.91426739,0.00025291,120]
[421175742,1777208813665,742.91426739,0.00025291,120]
[421175743,1777208813970,742.91426739,0.00025291,120]
[421175744,1777208814274,742.91426739,0.00025291,120]
[421175745,1777208814783,742.91426739,0.00025291,120]
[421175746,1777208815090,742.91426739,0.00025291,120]
[421175747,1777208815416,742.91426739,0.00025291,120]
[421175748,1777208815726,742.91426739,0.00025291,120]
[421175749,1777208816041,742.91426739,0.00025291,120]
[421175750,1777208816352,742.91426739,0.00025291,120]
[421175751,1777208816663,742.91426739,0.00025291,120]
[421175752,1777208816973,742.91426739,0.00025291,120]
[421175753,1777208817434,742.91426739,0.00025291,120]
[421175754,1777208817716,742.91426739,0.00025291,120]
[421175755,1777208818016,742.91426739,0.00025291,120]
[421175756,1777208818350,742.91426739,0.00025291,120]
[421175757,1777208818669,742.91426739,0.00025291,120]
[421175758,1777208819067,742.91426739,0.00025291,120]
[421175759,1777208819439,742.91426739,0.00025291,120]
[421175760,1777208819732,742.91426739,0.00025291,120]
[421175761,1777208820036,742.91426739,0.00025291,120]
[421175762,1777208820365,742.91426739,0.00025291,120]
[421175763,1777208820836,742.91426739,0.00025291,120]
[421175764,1777208820998,742.91426739,0.00025291,120]
[421175765,1777208845002,616.9767,0.00025291,120]
[421175766,1777208845051,616.9767,0.00025291,120]
[421175767,1777208845095,616.9767,0.00025291,120]
[421175768,1777208845140,616.9767,0.00025291,120]
[421175769,1777208845186,616.9767,0.00025291,120]
[421175770,1777208845231,616.9767,0.00025291,120]
[421175771,1777208845277,616.9767,0.00025291,120]
[421175772,1777208845322,616.9767,0.00025291,120]
[421175773,1777208845372,616.9767,0.00025291,120]
[421175774,1777208845417,616.9767,0.00025291,120]
[421175775,1777208845464,616.9767,0.00025291,120]
[421175776,1777208845508,616.9767,0.00025291,120]
[421175777,1777208845563,616.9767,0.00025291,120]
[421175778,1777208845609,616.9767,0.00025291,120]
[421175779,1777208845659,616.9767,0.00025291,120]
[421175780,1777208845707,616.9767,0.00025291,120]
[421175781,1777208845756,616.9767,0.00025291,120]
[421175782,1777208845826,616.9767,0.00025291,120]
[421175783,1777208846126,616.9767,0.00025291,120]
[421175784,1777208847284,500.0,0.00025291,120]
[421175785,1777208931442,247.63808912,0.00025291,120]
[421175786,1777208931740,247.63808912,0.00025291,120]
[421175788,1777208961611,1444.0,0.00020329,120]
[421175789,1777208961806,1444.0,0.00023781,120]
[421175791,1777209000947,5000.0,9.699e-05,10]
[421175803,1777209023438,5000.0,9.797e-05,10]
[421175863,1777209033991,586.29,0.00023288,120]
[421176006,1777209035483,879.44,0.00025291,120]
[421176069,1777209038861,-1200.0,9.896e-05,2]
[421176070,1777209038871,-559.0,9.896e-05,2]
[421176071,1777209038881,-215.84811488,9.897e-05,2]
[421176072,1777209038890,-300.0,9.897e-05,2]
[421176073,1777209038900,-1200.0,9.897e-05,2]
[421176074,1777209038910,-300.0,9.898e-05,2]
[421176075,1777209038919,-300.0,9.898e-05,2]
[421176076,1777209038967,-300.0,9.898e-05,2]
[421176077,1777209038976,-300.0,9.999e-05,2]
[421176078,1777209038985,-4672.83790778,0.0001,2]
[421176079,1777209038995,-300.0,0.00010199,2]
[421176080,1777209039004,-300.0,0.00010199,2]
[421176081,1777209039015,-300.0,0.00010199,2]
[421176082,1777209039024,-300.0,0.00010199,2]
[421176083,1777209039033,-300.0,0.00010199,2]
[421176084,1777209039041,-300.0,0.00010199,2]
[421176085,1777209039051,-300.0,0.00010199,2]
[421176086,1777209039060,-300.0,0.00010199,2]
[421176087,1777209039069,-300.0,0.00010199,2]
[421176088,1777209039079,-300.0,0.00010199,2]
[421176089,1777209039088,-300.0,0.00010199,2]
[421176090,1777209039096,-300.0,0.00010199,2]
[421176091,1777209039105,-300.0,0.00010199,2]
[421176092,1777209039115,-300.0,0.00010199,2]
[421176093,1777209039124,-300.0,0.00010199,2]
[421176094,1777209039133,-420.0,0.00010887,2]
[421176095,1777209039143,-420.0,0.00010887,2]
[421176096,1777209039152,-420.0,0.00010887,2]
[421176097,1777209039161,-420.0,0.00010999,2]
[421176098,1777209039171,-254.70077555,0.00011897,2]
[421176099,1777209039180,-180.0,0.00011976,2]
[421176100,1777209039190,-250.32371652,0.00012218,2]
[421176101,1777209039200,-1000.0,0.00013699,2]
[421176102,1777209039209,-293.55343623,0.00013897,2]
[421176103,1777209039218,-150.0,0.00014,2]
[421176104,1777209039228,-178.48,0.00014427,2]
[421176105,1777209039237,-500.0,0.00014494,2]
[421176106,1777209039246,-500.0,0.00014494,2]
[421176107,1777209039256,-500.0,0.00014494,2]
[421176108,1777209039265,-500.0,0.00014494,2]
[421176109,1777209039274,-500.0,0.00014494,2]
[421176110,1777209039283,-500.0,0.00014494,2]
[421176111,1777209039292,-500.0,0.00014494,2]
[421176112,1777209039302,-500.0,0.00014494,2]
[421176113,1777209039311,-500.0,0.00014494,2]
[421176114,1777209039320,-500.0,0.00014494,2]
[421176115,1777209039329,-500.0,0.00014494,2]
[421176116,1777209039339,-500.0,0.00014494,2]
[421176117,1777209039349,-500.0,0.00014494,2]
[421176118,1777209039358,-500.0,0.00014494,2]
[421176119,1777209039368,-500.0,0.00014494,2]
[421176120,1777209039377,-500.0,0.00014494,2]
[421176121,1777209039386,-500.0,0.00014494,2]
[421176122,1777209039396,-500.0,0.00014494,2]
[421176123,1777209039404,-500.0,0.00014494,2]
[421176124,1777209039412,-500.0,0.00014494,2]
[421176125,1777209039422,-500.0,0.00014494,2]
[421176126,1777209039431,-500.0,0.00014494,2]
[421176127,1777209039440,-500.0,0.00014494,2]
[421176128,1777209039450,-500.0,0.00014494,2]
[421176129,1777209039459,-500.0,0.00014494,2]
[421176130,1777209039468,-500.0,0.00014494,2]
[421176131,1777209039477,-500.0,0.00014494,2]
[421176132,1777209039486,-500.0,0.00014494,2]
[421176133,1777209039495,-500.0,0.00014494,2]
[421176134,1777209039504,-500.0,0.00014494,2]
[421176135,1777209039513,-500.0,0.00014494,2]
[421176136,1777209039523,-500.0,0.00014494,2]
[421176137,1777209039532,-500.0,0.00014494,2]
[421176138,1777209039542,-623.35112334,0.00014494,2]
[421176139,1777209039551,-500.0,0.00014494,2]
[421176140,1777209039561,-500.0,0.00014494,2]
[421176141,1777209039570,-439.05484143,0.00014494,2]
[421176142,1777209039578,-500.0,0.00014494,2]
[421176143,1777209039588,-500.0,0.00014494,2]
[421176144,1777209039597,-500.0,0.00014494,2]
[421176145,1777209039607,-329.6189089,0.00014494,2]
[421176146,1777209039616,-500.0,0.00014494,2]
[421176147,1777209039626,-500.0,0.00014494,2]
[421176148,1777209039635,-500.0,0.00014494,2]
[421176149,1777209039644,-553.3315831,0.00014494,2]
[421176150,1777209039652,-500.0,0.00014494,2]
[421176151,1777209039662,-500.0,0.00014494,2]
[421176152,1777209039671,-500.0,0.00014494,2]
[421176153,1777209039680,-500.0,0.00014494,2]
[421176154,1777209039689,-500.0,0.00014494,2]
[421176155,1777209039698,-500.0,0.00014494,2]
[421176156,1777209039707,-500.0,0.00014494,2]
[421176157,1777209039716,-500.0,0.00014494,2]
[421176158,1777209039726,-500.0,0.00014494,2]
[421176159,1777209039735,-500.0,0.00014494,2]
[421176160,1777209039744,-500.0,0.00014494,2]
[421176161,1777209039754,-500.0,0.00014494,2]
[421176162,1777209039764,-500.0,0.00014494,2]
[421176163,1777209039774,-500.0,0.00014494,2]
[421176164,1777209039784,-500.0,0.00014494,2]
[421176165,1777209039793,-500.0,0.00014494,2]
[421176166,1777209039803,-331.8558582,0.00014494,2]
[421176167,1777209039812,-500.0,0.00014494,2]
[421176168,1777209039822,-500.0,0.00014494,2]
[421176169,1777209039831,-500.0,0.00014494,2]
[421176170,1777209039841,-500.0,0.00014494,2]
[421176171,1777209039851,-500.0,0.00014494,2]
[421176172,1777209039860,-500.0,0.00014494,2]
[421176173,1777209039870,-500.0,0.00014494,2]
[421176174,1777209039880,-500.0,0.00014494,2]
[421176175,1777209039889,-500.0,0.00014494,2]
[421176176,1777209039899,-500.0,0.00014494,2]
[421176177,1777209039908,-500.0,0.00014494,2]
[421176178,1777209039918,-500.0,0.00014494,2]
[421176179,1777209039927,-500.0,0.00014494,2]
[421176180,1777209039937,-500.0,0.00014494,2]
[421176181,1777209039947,-500.0,0.00014494,2]
[421176182,1777209039956,-500.0,0.00014494,2]
[421176183,1777209039966,-500.0,0.00014494,2]
[421176184,1777209039975,-500.0,0.00014494,2]
[421176185,1777209039984,-500.0,0.00014494,2]
[421176186,1777209039993,-500.0,0.00014494,2]
[421176187,1777209040002,-500.0,0.00014494,2]
[421176188,1777209040011,-500.0,0.00014494,2]
[421176189,1777209040020,-500.0,0.00014499,2]
[421176190,1777209040029,-519.85637771,0.00014499,2]
[421176191,1777209040038,-253.269636,0.00014499,2]
[421176192,1777209040048,-253.269636,0.00014499,2]
[421176193,1777209040057,-253.269636,0.00014499,2]
[421176194,1777209040066,-253.269636,0.00014499,2]
[421176195,1777209040075,-253.269636,0.000145,2]
[421176196,1777209040084,-253.269636,0.000145,2]
[421176197,1777209040093,-253.269636,0.000145,2]
[421176198,1777209040103,-253.269636,0.000145,2]
[421176199,1777209040111,-710.32201709,0.000145,2]
[421176200,1777209040136,-571.67798291,0.000145,2]
[421176201,1777209040145,-1086311.34037985,0.000145,2]
[421176202,1777209040154,-155.0,0.00014596,2]
[421176203,1777209040164,-200.30125137,0.00014597,2]
[421176204,1777209040174,-151.0,0.00014598,2]
[421176205,1777209040183,-288.360296,0.00014598,2]
[421176206,1777209040192,-1598.18375677,0.00014627,2]
[421176207,1777209040201,-600.0,0.00014686,2]
[421176208,1777209040210,-151.0,0.00014698,2]
[421176209,1777209040219,-151.0,0.00014698,2]
[421176210,1777209040228,-1282.0,0.00014774,2]
[421176211,1777209040237,-5000.0,0.00014877,2]
[421176212,1777209040246,-1000.0,0.00014899,2]
[421176213,1777209040255,-1006.32090436,0.00014899,2]
[421176214,1777209040264,-1282.0,0.00015048,2]
[421176215,1777209040277,-799.0,0.00015052,2]
[421176216,1777209040287,-500.0,0.00015052,2]
[421176217,1777209040296,-799.0,0.00015052,2]
[421176218,1777209040305,-506.53357746,0.00015052,2]
[421176219,1777209040315,-799.0,0.00015052,2]
[421176220,1777209040324,-799.0,0.00015052,2]
[421176221,1777209040333,-799.0,0.00015052,2]
[421176222,1777209040341,-799.0,0.00015052,2]
[421176223,1777209040350,-799.0,0.00015052,2]
[421176224,1777209040359,-150.0,0.00015052,2]
[421176225,1777209040368,-799.0,0.00015052,2]
[421176226,1777209040378,-150.0,0.00015052,2]
[421176227,1777209040387,-799.0,0.00015052,2]
[421176228,1777209040396,-150.0,0.00015052,2]
[421176229,1777209040405,-799.0,0.00015052,2]
[421176230,1777209040414,-150.0,0.00015052,2]
[421176231,1777209040423,-799.0,0.00015052,2]
[421176232,1777209040432,-150.0,0.00015052,2]
[421176233,1777209040441,-799.0,0.00015052,2]
[421176234,1777209040450,-150.0,0.00015052,2]
[421176235,1777209040459,-799.0,0.00015052,2]
[421176236,1777209040468,-150.0,0.00015052,2]
[421176237,1777209040478,-799.0,0.00015052,2]
[421176238,1777209040487,-799.0,0.00015052,2]
[421176239,1777209040496,-799.0,0.00015052,2]
[421176240,1777209040505,-799.0,0.00015052,2]
[421176242,1777209040514,-799.0,0.00015052,2]
[421176244,1777209040523,-799.0,0.00015052,2]
[421176246,1777209040532,-799.0,0.00015052,2]
[421176248,1777209040541,-799.0,0.00015052,2]
[421176250,1777209040551,-799.0,0.00015052,2]
[421176252,1777209040560,-799.0,0.00015052,2]
[421176253,1777209040569,-812.06469156,0.00015052,2]
[421176255,1777209040578,-253.269636,0.00015052,2]
[421176256,1777209040588,-253.269636,0.00015052,2]
[421176257,1777209040597,-253.269636,0.00015052,2]
[421176258,1777209040606,-253.269636,0.00015052,2]
[421176259,1777209040615,-500.0,0.00015052,2]
[421176260,1777209040625,-500.0,0.00015052,2]
[421176261,1777209040634,-500.0,0.00015052,2]
[421176262,1777209040643,-500.0,0.00015052,2]
[421176263,1777209040652,-500.0,0.00015052,2]
[421176264,1777209040661,-500.0,0.00015052,2]
[421176265,1777209040671,-500.0,0.00015052,2]
[421176266,1777209040680,-500.0,0.00015052,2]
[421176267,1777209040690,-500.0,0.00015052,2]
[421176268,1777209040699,-291.84526023,0.00015052,2]
[421176269,1777209040708,-500.0,0.00015052,2]
[421176270,1777209040717,-500.0,0.00015052,2]
[421176271,1777209040726,-500.0,0.00015052,2]
[421176272,1777209040735,-581.6304632,0.00015052,2]
[421176273,1777209040744,-204.78800755,0.00015052,2]
[421176274,1777209040753,-151.5,0.00015052,2]
[421176275,1777209040763,-190.11200899,0.00015052,2]
[421176276,1777209040771,-500.0,0.00015052,2]
[421176277,1777209040780,-500.0,0.00015052,2]
[421176278,1777209040789,-500.0,0.00015052,2]
[421176279,1777209040799,-500.0,0.00015052,2]
[421176280,1777209040808,-647.89399347,0.00015052,2]
[421176281,1777209040817,-158.30713501,0.00015052,2]
[421176282,1777209040826,-500.0,0.00015052,2]
[421176283,1777209040835,-500.0,0.00015052,2]
[421176284,1777209040843,-239.95456007,0.00015052,2]
[421176285,1777209040853,-151.5,0.00015052,2]
[421176286,1777209040862,-151.0,0.00015126,2]
[421176287,1777209040871,-151.0,0.00015126,2]
[421176288,1777209040880,-275.426561,0.00015126,2]
[421176289,1777209040889,-4480.47687315,0.000153,2]
[421176290,1777209040898,-253.269636,0.000153,2]
[421176291,1777209040907,-253.269636,0.000153,2]
[421176292,1777209040917,-253.269636,0.000153,2]
[421176293,1777209040926,-253.269636,0.000153,2]
[421176294,1777209040935,-151.0,0.000153,2]
[421176295,1777209040944,-1618.234,0.00015315,2]
[421176296,1777209040954,-1410.0,0.00015315,2]
[421176297,1777209040963,-432.127,0.0001532,2]
[421176298,1777209040972,-1282.0,0.00015322,2]
[421176299,1777209040982,-160.0,0.00015341,2]
[421176301,1777209040991,-236.0,0.00015476,2]
[421176303,1777209041000,-595.0,0.00015476,2]
[421176305,1777209041009,-1088.0,0.00015476,2]
[421176307,1777209041018,-646.0,0.00015476,2]
[421176309,1777209041027,-218.0,0.00015476,2]
[421176311,1777209041036,-154.0,0.00015476,2]
[421176313,1777209041046,-4128.0,0.00015476,2]
[421176315,1777209041055,-151.0,0.00015476,2]
[421176317,1777209041066,-151.0,0.00015476,2]
[421176319,1777209041075,-4480.47687315,0.000155,2]
[421176321,1777209041084,-1282.0,0.00015596,2]
[421176323,1777209041093,-4480.47687315,0.000156,2]
[421176325,1777209041103,-609.46401,0.000156,2]
[421176326,1777209041112,-4480.47687315,0.000158,2]
[421176328,1777209041121,-609.46401,0.000158,2]
[421176330,1777209041130,-253.269636,0.000158,2]
[421176332,1777209041139,-253.269636,0.000158,2]
[421176334,1777209041149,-253.269636,0.000158,2]
[421176336,1777209041158,-253.269637,0.000158,2]
[421176338,1777209041169,-162.0,0.00015808,3]
[421176340,1777209041178,-379.07,0.00015808,2]
[421176342,1777209041188,-1282.0,0.0001587,2]
[421176344,1777209041197,-332.40609691,0.00015897,2]
[421176345,1777209041206,-609.46401,0.000159,2]
[421176347,1777209041215,-2485.85680983,0.00015973,2]
[421176349,1777209041224,-151.0,0.0001598,2]
[421176351,1777209041233,-218.39398782,0.00016,2]
[421176353,1777209041242,-4480.47687315,0.00016,2]
[421176355,1777209041251,-3000.0,0.00016,2]
[421176357,1777209041260,-151.0,0.00016,2]
[421176359,1777209041270,-151.0,0.00016,2]
[421176361,1777209041278,-151.0,0.00016,2]
[421176363,1777209041287,-32217.91939,0.00016,2]
[421176364,1777209041297,-500.0,0.00016,2]
[421176365,1777209041306,-3000.0,0.0001601,2]
[421176366,1777209041314,-3000.0,0.0001602,2]
[421176367,1777209041324,-3000.0,0.0001603,2]
[421176368,1777209041332,-3000.0,0.0001604,2]
[421176369,1777209041342,-3000.0,0.0001605,2]
[421176370,1777209041351,-824.0,0.00016052,2]
[421176371,1777209041359,-155.0,0.00016056,2]
[421176372,1777209041368,-5031.57430409,0.0001606,2]
[421176373,1777209041377,-3000.0,0.0001606,2]
[421176374,1777209041386,-3000.0,0.0001607,2]
[421176375,1777209041395,-3000.0,0.0001608,2]
[421176376,1777209041404,-3000.0,0.0001609,2]
[421176377,1777209041413,-300.0,0.000161,2]
[421176378,1777209041422,-149658.41185255,0.000161,2]
[421176379,1777209041735,-5142.75770885,0.000161,2]
[421176380,1777209041746,-1549.6017491,0.000161,2]
[421176402,1777209043792,-14559.34357715,0.000161,2]
[421176403,1777209043804,-505.9535,0.000161,2]
[421176404,1777209043847,-23330.88514982,0.000161,2]
[421176481,1777209046969,-5000.0,0.00015939,2]
[421176483,1777209046979,-1657.23787322,0.00015973,2]
[421176485,1777209046989,-7148.65780193,0.000161,2]
[421176487,1777209047000,-1851.555551,0.000161,2]
[421176506,1777209047181,-810.69410839,0.000161,2]
[421176508,1777209047193,-785.0,0.000161,2]
[421176522,1777209051588,247.63808911,0.00025291,120]
[421176524,1777209154151,500.0,0.00025274,120]
[421176529,1777209355110,284.425759,0.00025274,120]
[421176535,1777209444813,500.0,0.00025187,120]
[421176549,1777209661096,-5000.0,0.00013292,10]
[421176550,1777209663710,-201.00402325,0.00013461,2]
[421176551,1777209663731,-614.0,0.00013631,2]
[421176552,1777209663752,-1282.0,0.00013699,2]
[421176553,1777209663772,-1000.0,0.00013699,2]
[421176554,1777209663792,-1282.0,0.00013973,2]
[421176555,1777209663812,-166.66666667,0.00014152,2]
[421176556,1777209663832,-287.0,0.00014246,2]
[421176557,1777209663855,-167.32931008,0.00014247,2]
[421176558,1777209667126,-5000.0,0.00014104,10]
[421176559,1777209668452,-1114.67068992,0.00014247,2]
[421176560,1777209668474,-200.36999537,0.00014247,2]
[421176561,1777209668496,-166.66666667,0.00014296,2]
[421176562,1777209668520,-2680.58761521,0.00014296,2]
[421176563,1777209668545,-837.70503283,0.00014297,2]
[421176564,1777209671534,-300.0,0.00014245,2]
[421176565,1777209671558,-4700.0,0.00014297,2]
[421176569,1777209727881,-5000.0,0.00014154,10]
[421176570,1777209741699,1444.0,0.00020329,120]
[421176571,1777209741894,1444.0,0.00023781,120]
[421176572,1777209742269,-417.88217024,0.00014154,2]
[421176573,1777209742293,-493.22831572,0.00014296,2]
[421176574,1777209742321,-4088.88951404,0.00014297,2]
[421176575,1777209753601,500.0,0.00025187,120]
[421176577,1777209784831,-500.0,0.00014296,2]
[421176578,1777209784854,-500.0,0.00014296,2]
[421176579,1777209784877,-500.0,0.00014296,2]
[421176580,1777209784904,-500.0,0.00014296,2]
[421176581,1777209784928,-500.0,0.00014296,2]
[421176582,1777209784953,-500.0,0.00014296,2]
[421176583,1777209784976,-500.0,0.00014296,2]
[421176584,1777209784997,-500.0,0.00014296,2]
[421176585,1777209785019,-500.0,0.00014296,2]
[421176586,1777209785041,-500.0,0.00014296,2]
[421176587,1777209801967,-500.0,0.00014296,2]
[421176588,1777209801991,-213.81091041,0.00014296,2]
[421176589,1777209802015,-500.0,0.00014296,2]
[421176590,1777209802043,-500.0,0.00014296,2]
[421176591,1777209802067,-500.0,0.00014296,2]
[421176592,1777209802091,-500.0,0.00014296,2]
[421176593,1777209802117,-500.0,0.00014296,2]
[421176594,1777209802141,-500.0,0.00014296,2]
[421176595,1777209802166,-500.0,0.00014296,2]
[421176596,1777209802192,-500.0,0.00014296,2]
[421176597,1777209802219,-286.18908959,0.00014296,2]
[421176599,1777209824700,-213.81091041,0.00014296,2]
[421176600,1777209824724,-500.0,0.00014296,2]
[421176601,1777209824747,-500.0,0.00014296,2]
[421176602,1777209824769,-500.0,0.00014296,2]
[421176603,1777209824792,-500.0,0.00014296,2]
[421176604,1777209824816,-500.0,0.00014296,2]
[421176605,1777209824839,-500.0,0.00014296,2]
[421176606,1777209824864,-500.0,0.00014296,2]
[421176607,1777209824887,-500.0,0.00014296,2]
[421176608,1777209824908,-500.0,0.00014296,2]
[421176609,1777209824931,-149.18908959,0.00014296,2]
[421176615,1777210053700,500.0,0.00025192,120]
[421176629,1777210168016,3000.0,0.00025192,120]
[421176706,1777210232042,-1282.0,0.00013699,2]
[421176708,1777210232052,-196.98394279,0.00013699,2]
[421176709,1777210232061,-1000.0,0.00013699,2]
[421176711,1777210232071,-615.0,0.00013699,2]
[421176712,1777210232080,-1282.0,0.00014247,2]
[421176714,1777210232089,-500.0,0.00014296,2]
[421176716,1777210232099,-500.0,0.00014296,2]
[421176718,1777210232109,-500.0,0.00014296,2]
[421176720,1777210232118,-500.0,0.00014296,2]
[421176721,1777210232128,-500.0,0.00014296,2]
[421176723,1777210232137,-500.0,0.00014296,2]
[421176725,1777210232146,-500.0,0.00014296,2]
[421176727,1777210232156,-500.0,0.00014296,2]
[421176729,1777210232165,-500.0,0.00014296,2]
[421176731,1777210232175,-500.0,0.00014296,2]